fUSD/lending_fUSD_20240121
["ID","MTS","AMOUNT","RATE_DAILY","PERIOD"]
[312362384,1705832945345,-188.21550965,0.00021484,2]
[312362385,1705832945366,-2324.54716679,0.00021484,2]
[312362386,1705832945386,-1381.94,0.00021644,2]
[312362387,1705832945407,-161.66,0.00021678,2]
[312362388,1705832945428,-3192.30886784,0.00021693,2]
[312362389,1705832945452,-300.0,0.000219,2]
[312362390,1705832945472,-750.0,0.000219,2]
[312362391,1705832945494,-250.0,0.000219,2]
[312362392,1705832945515,-10345.46536385,0.00021908,2]
[312362393,1705832945549,-250.0,0.00021918,2]
[312362394,1705832945571,-573.79968129,0.00021918,2]
[312362421,1705833032137,-383.019,0.00021483,2]
[312362426,1705833038066,-658.90803667,0.00021483,2]
[312362427,1705833038076,-363.13432256,0.00021484,2]
[312362524,1705833041521,-837.19098398,0.00021484,2]
[312362525,1705833041530,-145.65751594,0.00021693,2]
[312362537,1705833042905,-489.68928186,0.00021693,2]
[312362539,1705833042917,-384.05183585,0.00021693,2]
[312362544,1705833046056,-253.60237005,0.00021693,2]
[312362545,1705833046251,-1918.17258884,0.00021693,2]
[312362546,1705833046261,-5247.92031871,0.00021918,2]
[312362547,1705833046271,-3196.91798374,0.00021918,2]
[312362548,1705833046280,-200.9895679,0.00022,2]
[312362549,1705833046290,-176.39,0.00022,2]
[312362550,1705833046299,-500.0,0.00022,2]
[312362551,1705833046308,-150.0,0.00022,2]
[312362552,1705833046318,-150.0,0.00022,2]
[312362553,1705833046327,-10287.82282118,0.00022,2]
[312362555,1705833046340,-3947.32717882,0.00022,2]
[312362557,1705833046349,-174.55,0.00022175,2]
[312362559,1705833046358,-174.55,0.00022198,2]
[312362560,1705833046367,-499.99,0.00022198,2]
[312362561,1705833046376,-395.18989333,0.00022205,2]
[312362562,1705833064199,204.0,0.00018608,2]
[312362564,1705833314677,240.66,0.000195,2]
[312362567,1705833750715,-1236.3018017,0.00035,30]
[312362568,1705833750743,-200.0,0.00035,30]
[312362569,1705833750988,-50096.7834,0.000358,30]
[312362570,1705833751013,-23552.7818758,0.000358,30]
[312362571,1705833751039,-181.62941668,0.0003587,30]
[312362572,1705833751063,-1024.51,0.00035873,30]
[312362573,1705833751086,-1984.77,0.00035877,30]
[312362574,1705833751109,-175.0,0.00035895,30]
[312362575,1705833751132,-41642.2847932,0.000359,30]
[312362576,1705833751156,-3000.0,0.00035904,30]
[312362577,1705833751178,-6406.48,0.00035911,30]
[312362578,1705833751204,-151.0121,0.00035915,30]
[312362579,1705833751227,-1500.0,0.00035919,30]
[312362580,1705833751250,-2605.1090804,0.00035919,30]
[312362581,1705833751274,-300.0,0.00035922,30]
[312362582,1705833751299,-1000.0,0.00036,120]
[312362583,1705833751323,-421.98683996,0.00036,30]
[312362584,1705833751349,-216.05619567,0.00037,30]
[312362585,1705833751375,-724.93964253,0.00038,30]
[312362586,1705833751399,-150.0,0.00038753,120]
[312362587,1705833751421,-14866.94974667,0.000388,30]
[312362588,1705833751445,-1514.0,0.00039,30]
[312362589,1705833751468,-489.12501805,0.00039,30]
[312362590,1705833751491,-1450.20156109,0.00039,30]
[312362591,1705833751520,-1500.0,0.000395,30]
[312362592,1705833751544,-1000.0,0.000398,30]
[312362593,1705833751565,-91470.21281137,0.000398,30]
[312362594,1705833751589,-3231.89055485,0.0004,30]
[312362595,1705833751613,-350.0,0.0004,120]
[312362596,1705833751635,-400.0,0.0004,120]
[312362597,1705833751658,-1500.0,0.0004,30]
[312362598,1705833751680,-395.5851415,0.0004,30]
[312362599,1705833751704,-276.0,0.0004,30]
[312362600,1705833751726,-333.18946667,0.0004,30]
[312362601,1705833751749,-2752.59350766,0.0004,30]
[312362602,1705833751772,-432.50334672,0.0004,120]
[312362603,1705833751795,-635.25543264,0.0004,30]
[312362604,1705833751817,-404.77649152,0.0004,120]
[312362605,1705833751840,-218550.2205393,0.0004,30]
[312362606,1705833751864,-16792.38265907,0.0004,120]
[312362607,1705833751888,-380.06423527,0.0004,120]
[312362608,1705833751912,-160.48244496,0.0004,120]
[312362609,1705833751936,-1000.0,0.0004,120]
[312362610,1705833751959,-96624.0,0.00040001,30]
[312362611,1705833751982,-1483.0,0.00040001,30]
[312362612,1705833752006,-363.0,0.00040001,30]
[312362613,1705833752031,-209.0,0.00040186,31]
[312362614,1705833752055,-96624.0,0.00040413,30]
[312362615,1705833752079,-1483.0,0.00040413,30]
[312362616,1705833752102,-363.0,0.00040413,30]
[312362617,1705833752124,-156.83600397,0.00040416,30]
[312362618,1705833752148,-1500.0,0.000405,30]
[312362619,1705833752171,-96624.0,0.00040826,30]
[312362620,1705833752195,-1483.0,0.00040826,30]
[312362621,1705833752219,-363.0,0.00040826,30]
[312362622,1705833752243,-156.83600397,0.00040916,30]
[312362623,1705833752265,-150.5,0.0004097,120]
[312362624,1705833752289,-150.5,0.0004097,120]
[312362625,1705833752313,-550.0,0.00040975,120]
[312362626,1705833752336,-150.5,0.0004098,120]
[312362627,1705833752360,-150.5,0.0004098,120]
[312362628,1705833752383,-183.68,0.0004098,120]
[312362629,1705833752407,-161.0,0.0004098,30]
[312362630,1705833752431,-400.0,0.00040986,120]
[312362631,1705833752454,-500.0,0.00040987,31]
[312362632,1705833752478,-200.0,0.00040987,40]
[312362633,1705833752501,-150.5,0.0004099,120]
[312362634,1705833752525,-150.5,0.0004099,120]
[312362635,1705833752548,-150.5,0.0004099,120]
[312362636,1705833752571,-150.5,0.0004099,30]
[312362637,1705833752594,-1000.0,0.00041,30]
[312362638,1705833752617,-694.51291563,0.00041,120]
[312362639,1705833752640,-630.445,0.0004109,120]
[312362640,1705833752664,-500.0,0.00041095,31]
[312362641,1705833752690,-406.00037588,0.00041095,31]
[312362642,1705833752715,-488.08844094,0.00041095,31]
[312362643,1705833752738,-290.5082006,0.00041095,31]
[312362644,1705833752763,-510.42969686,0.00041095,31]
[312362645,1705833752788,-500.0,0.00041095,31]
[312362646,1705833752812,-617.77921466,0.00041095,31]
[312362647,1705833752834,-500.0,0.00041095,31]
[312362648,1705833752858,-500.0,0.00041095,31]
[312362649,1705833752881,-501.48896064,0.00041095,31]
[312362650,1705833752904,-158.72848815,0.00041095,31]
[312362651,1705833752928,-500.0,0.00041095,31]
[312362652,1705833752952,-504.8356121,0.00041095,31]
[312362653,1705833752975,-203.14604856,0.00041095,31]
[312362654,1705833752998,-500.0,0.00041095,31]
[312362655,1705833753022,-526.23075036,0.00041095,31]
[312362656,1705833753045,-587.81040886,0.00041095,31]
[312362657,1705833753069,-500.0,0.00041095,31]
[312362658,1705833753093,-500.0,0.00041095,31]
[312362659,1705833753118,-500.0,0.00041095,31]
[312362660,1705833753142,-500.0,0.00041095,31]
[312362661,1705833753166,-500.0,0.00041095,31]
[312362662,1705833753189,-546.49645062,0.00041095,31]
[312362663,1705833753212,-474.51025511,0.00041095,31]
[312362664,1705833753235,-316.51830305,0.00041095,31]
[312362665,1705833753258,-526.12201558,0.00041095,31]
[312362666,1705833753281,-500.0,0.00041095,31]
[312362667,1705833753303,-500.0,0.00041095,31]
[312362668,1705833753328,-513.2341146,0.00041095,31]
[312362669,1705833753495,-500.0,0.00041095,31]
[312362670,1705833753520,-500.0,0.00041095,31]
[312362671,1705833753543,-500.0,0.00041095,31]
[312362672,1705833753565,-500.0,0.00041095,31]
[312362673,1705833753589,-337.83888154,0.00041095,31]
[312362674,1705833753612,-417.99121322,0.00041095,31]
[312362675,1705833753635,-510.48664893,0.00041095,31]
[312362676,1705833753658,-500.0,0.00041095,31]
[312362677,1705833753681,-500.0,0.00041095,31]
[312362678,1705833753706,-500.0,0.00041095,31]
[312362679,1705833753729,-518.95450818,0.00041095,31]
[312362680,1705833753752,-500.0,0.00041095,31]
[312362681,1705833753776,-474.75,0.00041095,31]
[312362682,1705833753799,-519.51112054,0.00041095,31]
[312362683,1705833753823,-527.75367846,0.00041095,31]
[312362684,1705833753845,-500.0,0.00041095,31]
[312362685,1705833753869,-506.8158033,0.00041095,31]
[312362686,1705833753892,-618.78,0.00041095,31]
[312362687,1705833753916,-500.0,0.00041095,31]
[312362688,1705833753939,-1000.0,0.00041095,30]
[312362689,1705833753963,-500.0,0.00041095,31]
[312362690,1705833753987,-511.70776611,0.00041095,31]
[312362691,1705833754012,-500.0,0.00041095,31]
[312362692,1705833754036,-515.80051069,0.00041095,31]
[312362693,1705833754060,-500.0,0.00041095,31]
[312362694,1705833754084,-182.67131704,0.00041095,31]
[312362695,1705833754109,-500.0,0.00041095,31]
[312362696,1705833754133,-500.0,0.00041095,31]
[312362697,1705833754158,-500.0,0.00041095,31]
[312362698,1705833754184,-500.0,0.00041095,31]
[312362699,1705833754209,-512.81001821,0.00041095,31]
[312362700,1705833754235,-500.0,0.00041095,31]
[312362701,1705833754260,-534.38259198,0.00041095,31]
[312362702,1705833754286,-500.0,0.00041095,31]
[312362703,1705833754310,-519.76697314,0.00041095,31]
[312362704,1705833754335,-500.0,0.00041095,31]
[312362705,1705833754360,-500.0,0.00041095,31]
[312362706,1705833754385,-511.77029233,0.00041095,31]
[312362707,1705833754408,-516.98263353,0.00041095,31]
[312362708,1705833754432,-547.27319777,0.00041095,31]
[312362709,1705833754456,-507.83471273,0.00041095,31]
[312362710,1705833754480,-500.0,0.00041095,31]
[312362711,1705833754502,-918.6524644,0.00041095,31]
[312362712,1705833754525,-500.0,0.00041095,31]
[312362713,1705833754549,-500.0,0.00041095,31]
[312362714,1705833754571,-500.0,0.00041095,31]
[312362715,1705833754594,-500.0,0.00041095,31]
[312362716,1705833754617,-613.25387497,0.00041095,31]
[312362717,1705833754640,-510.0,0.00041095,120]
[312362718,1705833754662,-800.0,0.00041095,30]
[312362719,1705833754685,-500.0,0.00041095,31]
[312362720,1705833754711,-524.14070732,0.00041095,31]
[312362721,1705833754735,-500.0,0.00041095,31]
[312362722,1705833754757,-516.67305124,0.00041095,31]
[312362723,1705833754779,-513.98590801,0.00041095,31]
[312362724,1705833754802,-520.57796756,0.00041095,31]
[312362725,1705833754823,-500.0,0.00041095,31]
[312362726,1705833754845,-500.0,0.00041095,31]
[312362727,1705833754867,-505.5140024,0.00041095,31]
[312362728,1705833754889,-500.0,0.00041095,31]
[312362729,1705833754911,-500.0,0.00041095,31]
[312362730,1705833754932,-488.13402773,0.00041095,31]
[312362731,1705833754953,-491.7323673,0.00041095,31]
[312362732,1705833754974,-510.20784455,0.00041095,31]
[312362733,1705833754996,-500.0,0.00041095,31]
[312362734,1705833755017,-390.33596533,0.00041095,31]
[312362735,1705833755039,-514.25985063,0.00041095,31]
[312362736,1705833755061,-517.39593966,0.00041095,31]
[312362737,1705833755083,-500.0,0.00041095,31]
[312362738,1705833755220,-514.33132071,0.00041095,31]
[312362739,1705833755243,-504.49643322,0.00041095,31]
[312362740,1705833755266,-500.0,0.00041095,31]
[312362741,1705833755289,-500.0,0.00041095,31]
[312362742,1705833755311,-1018.10984121,0.00041095,31]
[312362743,1705833755334,-500.0,0.00041095,31]
[312362744,1705833755358,-500.0,0.00041095,31]
[312362745,1705833755380,-509.80307072,0.00041095,31]
[312362746,1705833755403,-500.0,0.00041095,31]
[312362747,1705833755426,-502.19806894,0.00041095,31]
[312362748,1705833755449,-500.0,0.00041095,31]
[312362749,1705833755472,-500.0,0.00041095,31]
[312362750,1705833755496,-500.0,0.00041095,31]
[312362751,1705833755518,-500.0,0.00041095,31]
[312362752,1705833755541,-500.0,0.00041095,31]
[312362753,1705833755564,-508.91926426,0.00041095,31]
[312362754,1705833755586,-500.0,0.00041095,31]
[312362755,1705833755610,-449.340121,0.00041095,31]
[312362756,1705833755632,-518.00517186,0.00041095,31]
[312362757,1705833755654,-531.34558891,0.00041095,31]
[312362758,1705833755676,-509.96188505,0.00041095,31]
[312362759,1705833755699,-500.0,0.00041095,31]
[312362760,1705833755728,-500.0,0.00041095,31]
[312362761,1705833755750,-603.05621198,0.00041095,31]
[312362762,1705833755773,-500.0,0.00041095,31]
[312362763,1705833755797,-511.5437702,0.00041095,31]
[312362764,1705833755820,-508.69796934,0.00041095,31]
[312362765,1705833755842,-500.0,0.00041095,31]
[312362766,1705833755865,-500.0,0.00041095,31]
[312362767,1705833755888,-536.07979362,0.00041095,31]
[312362768,1705833755911,-500.0,0.00041095,31]
[312362769,1705833755933,-608.82179285,0.00041095,31]
[312362770,1705833755955,-524.28680905,0.00041095,31]
[312362771,1705833755978,-500.0,0.00041095,31]
[312362772,1705833756001,-520.16638111,0.00041095,31]
[312362773,1705833756025,-500.0,0.00041095,31]
[312362774,1705833756173,-500.0,0.00041095,31]
[312362775,1705833756227,-518.13958964,0.00041095,31]
[312362776,1705833756251,-527.40330218,0.00041095,31]
[312362777,1705833756274,-596.19383859,0.00041095,31]
[312362778,1705833756299,-485.69898928,0.00041095,31]
[312362779,1705833756325,-500.0,0.00041095,31]
[312362780,1705833756350,-500.0,0.00041095,31]
[312362781,1705833756373,-500.0,0.00041095,31]
[312362782,1705833756397,-500.0,0.00041095,31]
[312362783,1705833756421,-545.45203681,0.00041095,31]
[312362784,1705833756445,-500.0,0.00041095,31]
[312362785,1705833756469,-150.0,0.00041095,31]
[312362786,1705833756492,-520.02244827,0.00041095,31]
[312362787,1705833756515,-500.0,0.00041095,31]
[312362788,1705833756537,-500.0,0.00041095,31]
[312362789,1705833756560,-513.50785554,0.00041095,31]
[312362790,1705833756583,-520.72112129,0.00041095,31]
[312362791,1705833756606,-508.75994168,0.00041095,31]
[312362792,1705833756630,-508.92781924,0.00041095,31]
[312362793,1705833756653,-500.0,0.00041095,31]
[312362794,1705833756676,-518.16918703,0.00041095,31]
[312362795,1705833756701,-354.47228483,0.00041095,31]
[312362796,1705833756726,-500.0,0.00041095,31]
[312362797,1705833756750,-500.0,0.00041095,31]
[312362798,1705833756774,-512.01191861,0.00041095,31]
[312362799,1705833756798,-500.0,0.00041095,31]
[312362800,1705833756821,-516.39090433,0.00041095,31]
[312362801,1705833756845,-165.60751998,0.00041095,31]
[312362802,1705833756868,-500.0,0.00041095,31]
[312362803,1705833756892,-382.33134911,0.00041095,31]
[312362804,1705833756916,-529.53499052,0.00041095,31]
[312362805,1705833756939,-500.0,0.00041095,31]
[312362806,1705833756962,-500.0,0.00041095,31]
[312362807,1705833756985,-500.0,0.00041095,31]
[312362808,1705833757008,-500.0,0.00041095,31]
[312362809,1705833757031,-505.75554987,0.00041095,31]
[312362810,1705833757054,-500.0,0.00041095,31]
[312362811,1705833757077,-500.0,0.00041095,31]
[312362812,1705833757101,-499.73687238,0.00041095,31]
[312362813,1705833757124,-500.0,0.00041095,31]
[312362814,1705833757147,-512.25077313,0.00041095,31]
[312362815,1705833757169,-527.42374458,0.00041095,31]
[312362816,1705833757191,-521.7809765,0.00041095,31]
[312362817,1705833757213,-500.0,0.00041095,31]
[312362818,1705833757236,-500.0,0.00041095,31]
[312362819,1705833757257,-500.0,0.00041095,31]
[312362820,1705833757280,-516.37528267,0.00041095,31]
[312362821,1705833757302,-531.05298113,0.00041095,31]
[312362822,1705833757325,-500.0,0.00041095,31]
[312362823,1705833757348,-510.42750735,0.00041095,31]
[312362824,1705833757370,-511.52042453,0.00041095,31]
[312362825,1705833757393,-500.0,0.00041095,31]
[312362826,1705833757417,-517.78504357,0.00041095,31]
[312362827,1705833757441,-500.0,0.00041095,31]
[312362828,1705833757464,-512.60305123,0.00041095,31]
[312362829,1705833757488,-531.55855812,0.00041095,31]
[312362830,1705833757510,-500.0,0.00041095,31]
[312362831,1705833757532,-500.0,0.00041095,31]
[312362832,1705833757555,-475.81,0.00041095,31]
[312362833,1705833757577,-515.36096075,0.00041095,31]
[312362834,1705833757601,-500.0,0.00041095,31]
[312362835,1705833757626,-500.0,0.00041095,31]
[312362836,1705833757648,-500.0,0.00041095,31]
[312362837,1705833757671,-500.0,0.00041095,31]
[312362838,1705833757694,-527.36689428,0.00041095,31]
[312362839,1705833757720,-517.60330888,0.00041095,31]
[312362840,1705833757743,-521.54243921,0.00041095,31]
[312362841,1705833757765,-500.0,0.00041095,31]
[312362842,1705833757788,-500.0,0.00041095,31]
[312362843,1705833757809,-520.98451332,0.00041095,31]
[312362844,1705833757831,-525.03363979,0.00041095,31]
[312362845,1705833757853,-503.03830869,0.00041095,31]
[312362846,1705833757875,-500.0,0.00041095,31]
[312362847,1705833757900,-500.0,0.00041095,31]
[312362848,1705833757923,-506.17540529,0.00041095,31]
[312362849,1705833757948,-552.58111749,0.00041095,31]
[312362850,1705833757970,-500.0,0.00041095,31]
[312362851,1705833757994,-527.73021417,0.00041095,31]
[312362852,1705833758017,-523.92617177,0.00041095,31]
[312362853,1705833758039,-525.17529642,0.00041095,31]
[312362854,1705833758062,-500.0,0.00041095,31]
[312362855,1705833758084,-599.19,0.00041095,31]
[312362856,1705833758107,-599.19,0.00041095,31]
[312362857,1705833758129,-599.19,0.00041095,31]
[312362858,1705833758152,-599.19,0.00041095,31]
[312362859,1705833758174,-599.19,0.00041095,31]
[312362860,1705833758197,-599.19,0.00041095,31]
[312362861,1705833758219,-599.19,0.00041095,31]
[312362862,1705833758242,-599.19,0.00041095,31]
[312362863,1705833758264,-599.19,0.00041095,31]
[312362864,1705833758288,-595.80037731,0.00041095,31]
[312362865,1705833758311,-599.19,0.00041095,31]
[312362866,1705833758333,-599.19,0.00041095,31]
[312362867,1705833758355,-599.19,0.00041095,31]
[312362868,1705833758379,-599.19,0.00041095,31]
[312362869,1705833758402,-599.19,0.00041095,31]
[312362870,1705833758425,-599.19,0.00041095,31]
[312362871,1705833758447,-500.0,0.00041095,31]
[312362872,1705833758470,-599.19,0.00041095,31]
[312362873,1705833758493,-599.19,0.00041095,31]
[312362874,1705833758515,-599.19,0.00041095,31]
[312362875,1705833758537,-599.19,0.00041095,31]
[312362876,1705833758560,-599.19,0.00041095,31]
[312362877,1705833758582,-599.19,0.00041095,31]
[312362878,1705833758603,-599.19,0.00041095,31]
[312362879,1705833758625,-599.19,0.00041095,31]
[312362880,1705833758794,-599.32204189,0.00041095,31]
[312362881,1705833758817,-500.0,0.00041095,31]
[312362882,1705833758839,-522.68847102,0.00041095,31]
[312362883,1705833758863,-539.58256469,0.00041095,31]
[312362884,1705833758885,-603.1170539,0.00041095,31]
[312362885,1705833758908,-500.0,0.00041095,31]
[312362886,1705833758929,-382.03001986,0.00041095,31]
[312362887,1705833758951,-523.8263783,0.00041095,31]
[312362888,1705833758974,-500.0,0.00041095,31]
[312362889,1705833758997,-543.74868435,0.00041095,31]
[312362890,1705833759019,-376.32760163,0.00041095,31]
[312362891,1705833759043,-500.0,0.00041095,31]
[312362892,1705833759067,-500.0,0.00041095,31]
[312362893,1705833759089,-500.0,0.00041095,31]
[312362894,1705833759111,-500.0,0.00041095,31]
[312362895,1705833759132,-500.0,0.00041095,31]
[312362896,1705833759155,-500.0,0.00041095,31]
[312362897,1705833759177,-328.17673877,0.00041095,31]
[312362898,1705833759200,-500.0,0.00041095,31]
[312362899,1705833759223,-500.0,0.00041095,31]
[312362900,1705833759245,-500.0,0.00041095,31]
[312362901,1705833759267,-500.0,0.00041095,31]
[312362902,1705833759291,-500.0,0.00041095,31]
[312362903,1705833759314,-500.0,0.00041095,31]
[312362904,1705833759337,-510.29193484,0.00041095,31]
[312362905,1705833759361,-500.0,0.00041095,31]
[312362906,1705833759384,-528.26870026,0.00041095,31]
[312362907,1705833759406,-500.0,0.00041095,31]
[312362908,1705833759429,-560.53463338,0.00041095,31]
[312362909,1705833759452,-477.90319195,0.00041095,31]
[312362910,1705833759475,-500.0,0.00041095,31]
[312362911,1705833759497,-520.19148953,0.00041095,31]
[312362912,1705833759519,-500.0,0.00041095,31]
[312362913,1705833759543,-1710.77,0.00041095,31]
[312362914,1705833759565,-500.0,0.00041095,31]
[312362915,1705833759588,-500.0,0.00041095,31]
[312362916,1705833759610,-500.0,0.00041095,31]
[312362917,1705833759632,-496.95937022,0.00041095,31]
[312362918,1705833759655,-500.0,0.00041095,31]
[312362919,1705833759676,-326.70728941,0.00041095,31]
[312362920,1705833759699,-500.0,0.00041095,31]
[312362921,1705833759725,-529.06569661,0.00041095,31]
[312362922,1705833759748,-429.7667955,0.00041095,31]
[312362923,1705833759771,-517.52319941,0.00041095,31]
[312362924,1705833759795,-500.0,0.00041095,31]
[312362925,1705833759818,-517.01487773,0.00041095,31]
[312362926,1705833759842,-500.0,0.00041095,31]
[312362927,1705833759866,-527.26466295,0.00041095,31]
[312362928,1705833759890,-500.0,0.00041095,31]
[312362929,1705833759913,-500.0,0.00041095,31]
[312362930,1705833759936,-235.5257327,0.00041095,31]
[312362931,1705833759960,-500.0,0.00041095,31]
[312362932,1705833759983,-536.6779416,0.00041095,31]
[312362933,1705833760006,-504.50827148,0.00041095,31]
[312362934,1705833760030,-500.0,0.00041095,31]
[312362935,1705833760054,-250.0,0.00041095,31]
[312362936,1705833760077,-500.0,0.00041095,31]
[312362937,1705833760100,-500.0,0.00041095,31]
[312362938,1705833760124,-500.0,0.00041095,31]
[312362939,1705833760148,-500.0,0.00041095,31]
[312362940,1705833760173,-500.0,0.00041095,31]
[312362941,1705833760196,-500.0,0.00041095,31]
[312362942,1705833760221,-500.0,0.00041095,31]
[312362943,1705833760245,-500.0,0.00041095,31]
[312362944,1705833760268,-500.0,0.00041095,31]
[312362945,1705833760290,-500.0,0.00041095,31]
[312362946,1705833760313,-500.0,0.00041095,31]
[312362947,1705833760336,-500.0,0.00041095,31]
[312362948,1705833760359,-500.0,0.00041095,31]
[312362949,1705833760384,-500.0,0.00041095,31]
[312362950,1705833760406,-500.0,0.00041095,31]
[312362951,1705833760429,-500.0,0.00041095,31]
[312362952,1705833760452,-500.0,0.00041095,31]
[312362953,1705833760475,-500.0,0.00041095,31]
[312362954,1705833760497,-500.0,0.00041095,31]
[312362955,1705833760519,-500.0,0.00041095,31]
[312362956,1705833760542,-648.03045411,0.00041095,31]
[312362957,1705833760565,-514.68870887,0.00041095,31]
[312362958,1705833760588,-500.0,0.00041095,31]
[312362959,1705833760609,-414.71241447,0.00041095,31]
[312362960,1705833760631,-500.0,0.00041095,31]
[312362961,1705833760653,-493.17085319,0.00041095,31]
[312362962,1705833760678,-272.3582363,0.00041095,31]
[312362963,1705833760705,-516.97324826,0.00041095,31]
[312362964,1705833760728,-510.95952486,0.00041095,31]
[312362965,1705833760751,-500.0,0.00041095,31]
[312362966,1705833760774,-500.0,0.00041095,31]
[312362967,1705833760797,-525.69337731,0.00041095,31]
[312362968,1705833760820,-500.0,0.00041095,31]
[312362969,1705833760842,-500.0,0.00041095,31]
[312362970,1705833760865,-198.44550676,0.00041095,31]
[312362971,1705833760889,-161.44688798,0.00041095,31]
[312362972,1705833760912,-500.0,0.00041095,31]
[312362973,1705833760936,-509.36503783,0.00041095,31]
[312362974,1705833760958,-504.00934845,0.00041095,31]
[312362975,1705833760982,-500.0,0.00041095,31]
[312362976,1705833761006,-500.0,0.00041095,31]
[312362977,1705833761029,-500.0,0.00041095,31]
[312362978,1705833761051,-500.0,0.00041095,31]
[312362979,1705833761075,-538.36852946,0.00041095,31]
[312362980,1705833761098,-500.0,0.00041095,31]
[312362981,1705833761121,-500.0,0.00041095,31]
[312362982,1705833761144,-500.0,0.00041095,31]
[312362983,1705833761167,-523.5004714,0.00041095,30]
[312362984,1705833761190,-404.57131455,0.00041095,31]
[312362985,1705833761364,-500.0,0.00041095,31]
[312362986,1705833761388,-743.27,0.00041095,31]
[312362987,1705833761412,-500.0,0.00041095,31]
[312362988,1705833761435,-500.0,0.00041095,31]
[312362989,1705833761458,-500.0,0.00041095,31]
[312362990,1705833761480,-500.0,0.00041095,31]
[312362991,1705833761504,-500.0,0.00041095,31]
[312362992,1705833761527,-500.0,0.00041095,31]
[312362993,1705833761551,-852.56,0.00041095,31]
[312362994,1705833761574,-500.0,0.00041095,31]
[312362995,1705833761598,-500.0,0.00041095,31]
[312362996,1705833761622,-500.0,0.00041095,31]
[312362997,1705833761647,-2351.31,0.00041095,31]
[312362998,1705833761669,-500.0,0.00041095,31]
[312362999,1705833761693,-639.60534062,0.00041095,31]
[312363000,1705833761718,-500.0,0.00041095,31]
[312363001,1705833761742,-500.0,0.00041095,31]
[312363002,1705833761766,-500.0,0.00041095,31]
[312363003,1705833761791,-6061.09,0.00041095,31]
[312363004,1705833761816,-500.0,0.00041095,31]
[312363005,1705833761839,-500.0,0.00041095,31]
[312363006,1705833761863,-842.03,0.00041095,31]
[312363007,1705833761886,-589.60760536,0.00041095,31]
[312363008,1705833761909,-532.82575735,0.00041095,31]
[312363009,1705833761932,-500.0,0.00041095,31]
[312363010,1705833761955,-2114.52,0.00041095,31]
[312363011,1705833761977,-562.91128961,0.00041095,31]
[312363012,1705833762000,-500.0,0.00041095,31]
[312363013,1705833762023,-353.01790154,0.00041095,31]
[312363014,1705833762045,-500.0,0.00041095,31]
[312363015,1705833762068,-525.50177413,0.00041095,31]
[312363016,1705833762091,-500.0,0.00041095,31]
[312363017,1705833762115,-500.0,0.00041095,31]
[312363018,1705833762139,-500.0,0.00041095,31]
[312363019,1705833762163,-500.0,0.00041095,31]
[312363020,1705833762188,-500.0,0.00041095,31]
[312363021,1705833762213,-500.0,0.00041095,31]
[312363022,1705833762238,-667.03,0.00041095,31]
[312363023,1705833762263,-527.52305331,0.00041095,31]
[312363024,1705833762287,-500.0,0.00041095,31]
[312363025,1705833762310,-500.21,0.00041095,31]
[312363026,1705833762336,-445.66221292,0.00041095,31]
[312363027,1705833762360,-500.0,0.00041095,31]
[312363028,1705833762384,-500.0,0.00041095,31]
[312363029,1705833762409,-563.83472574,0.00041095,31]
[312363030,1705833762434,-537.93473981,0.00041095,31]
[312363031,1705833762459,-536.32,0.00041095,31]